[Event "Live Chess"]
[Site "Chess.com"]
[Date "2023.05.20"]
[Round "-"]
[White "Doge_Dandolo"]
[Black "friarnator"]
[Result "1/2-1/2"]
[WhiteElo "2031"]
[BlackElo "1998"]
[TimeControl "300"]
[EndTime "14:19:12 PDT"]
[Termination "Game drawn by stalemate"]

1. Nf3 {[%clk 0:04:58.5]} 1... Nf6 {[%clk 0:04:57.9]} 2. c4 {[%clk 0:04:57.2]}
2... g6 {[%clk 0:04:51.7]} 3. Nc3 {[%clk 0:04:55.8]} 3... Bg7 {[%clk 0:04:51]}
4. e4 {[%clk 0:04:54.9]} 4... d6 {[%clk 0:04:50.5]} 5. d4 {[%clk 0:04:54.1]}
5... O-O {[%clk 0:04:49.8]} 6. Be2 {[%clk 0:04:53.4]} 6... e5 {[%clk 0:04:48.8]}
7. dxe5 {[%clk 0:04:52.5]} 7... dxe5 {[%clk 0:04:48.7]} 8. Qxd8 {[%clk
0:04:51.5]} 8... Rxd8 {[%clk 0:04:47.7]} 9. Bg5 {[%clk 0:04:50.9]} 9... Re8
{[%clk 0:04:44.9]} 10. Nd5 {[%clk 0:04:48.9]} 10... Nxd5 {[%clk 0:04:43.2]} 11.
cxd5 {[%clk 0:04:48.4]} 11... c6 {[%clk 0:04:41.2]} 12. Bc4 {[%clk 0:04:47.9]}
12... cxd5 {[%clk 0:04:39.2]} 13. Bxd5 {[%clk 0:04:47.1]} 13... Nd7 {[%clk
0:04:37.8]} 14. O-O-O {[%clk 0:04:45.1]} 14... Nb6 {[%clk 0:04:36.5]} 15. Bb3
{[%clk 0:04:43.9]} 15... Be6 {[%clk 0:04:33.9]} 16. Bxe6 {[%clk 0:04:40.5]}
16... Rxe6 {[%clk 0:04:33.8]} 17. Be3 {[%clk 0:04:34]} 17... Nc4 {[%clk
0:04:30.3]} 18. Bd2 {[%clk 0:04:23.8]} 18... Rc6 {[%clk 0:04:19.3]} 19. Bc3
{[%clk 0:04:22.4]} 19... b5 {[%clk 0:04:16]} 20. Kb1 {[%clk 0:04:20.6]} 20... a5
{[%clk 0:04:15.2]} 21. Rd5 {[%clk 0:04:16.1]} 21... f6 {[%clk 0:03:12.6]} 22.
Rxb5 {[%clk 0:04:04.8]} 22... Na3+ {[%clk 0:03:11.8]} 23. bxa3 {[%clk
0:03:57.7]} 23... Rxc3 {[%clk 0:03:10.4]} 24. Rc1 {[%clk 0:03:53.9]} 24... Rxa3
{[%clk 0:03:02.8]} 25. Rc7 {[%clk 0:03:47.3]} 25... Bf8 {[%clk 0:02:54.8]} 26.
Nd2 {[%clk 0:03:25.8]} 26... Rd8 {[%clk 0:02:51.3]} 27. Nc4 {[%clk 0:03:13.8]}
27... Rc3 {[%clk 0:02:47.4]} 28. Kb2 {[%clk 0:03:08.5]} 28... Rcd3 {[%clk
0:02:21.7]} 29. Nxa5 {[%clk 0:03:01]} 29... Ba3+ {[%clk 0:02:18.8]} 30. Kc2
{[%clk 0:02:54.4]} 30... Rd2+ {[%clk 0:02:11.2]} 31. Kb3 {[%clk 0:02:52.7]}
31... R8d3+ {[%clk 0:02:08.3]} 32. Ka4 {[%clk 0:02:45.7]} 32... Rxa2 {[%clk
0:01:59.9]} 33. Rb8+ {[%clk 0:02:37.8]} 33... Bf8+ {[%clk 0:01:58.7]} 34. Kb5
{[%clk 0:02:36.3]} 34... Rda3 {[%clk 0:01:51.3]} 35. Rcc8 {[%clk 0:02:32.9]}
35... Rxa5+ {[%clk 0:01:48.9]} 36. Kb6 {[%clk 0:02:31.1]} 36... Ra6+ {[%clk
0:01:24.5]} 37. Kb7 {[%clk 0:02:29.1]} 37... R6a3 {[%clk 0:01:00.5]} 38. Rxf8+
{[%clk 0:02:27]} 38... Kg7 {[%clk 0:00:58.9]} 39. Kc6 {[%clk 0:02:22.2]} 39...
Rxf2 {[%clk 0:00:55.4]} 40. Kd5 {[%clk 0:02:19.7]} 40... Rxg2 {[%clk 0:00:49.2]}
41. Rg8+ {[%clk 0:02:18.5]} 41... Kh6 {[%clk 0:00:47.8]} 42. Rb7 {[%clk
0:02:14.1]} 42... Rxh2 {[%clk 0:00:45]} 43. Rgg7 {[%clk 0:02:11.4]} 43... Kg5
{[%clk 0:00:43.6]} 44. Ke6 {[%clk 0:02:07.4]} 44... Ra6+ {[%clk 0:00:38.5]} 45.
Kd5 {[%clk 0:02:05.2]} 45... Rd2+ {[%clk 0:00:37.6]} 46. Kc4 {[%clk 0:02:03.3]}
46... Rd4+ {[%clk 0:00:36.8]} 47. Kc3 {[%clk 0:02:02]} 47... h5 {[%clk
0:00:35.8]} 48. Rbf7 {[%clk 0:01:55.7]} 48... Rc6+ {[%clk 0:00:34.6]} 49. Kb3
{[%clk 0:01:53.9]} 49... Rxe4 {[%clk 0:00:33.8]} 50. Rh7 {[%clk 0:01:51.9]}
50... h4 {[%clk 0:00:32.4]} 51. Rf8 {[%clk 0:01:50.3]} 51... f5 {[%clk
0:00:30.5]} 52. Rfh8 {[%clk 0:01:48.2]} 52... Rg4 {[%clk 0:00:28.9]} 53. Rh6
{[%clk 0:01:43.3]} 53... f4 {[%clk 0:00:27.6]} 54. R6h7 {[%clk 0:01:42.1]} 54...
f3 {[%clk 0:00:26.8]} 55. Rf7 {[%clk 0:01:40.8]} 55... Rf4 {[%clk 0:00:26]} 56.
Rxf4 {[%clk 0:01:39.3]} 56... exf4 {[%clk 0:00:25.9]} 57. Rxh4 {[%clk
0:01:37.4]} 57... Kxh4 {[%clk 0:00:24.9]} 58. Kb4 {[%clk 0:01:36.9]} 58... Rc1
{[%clk 0:00:24]} 59. Kb5 {[%clk 0:01:36.8]} 59... f2 {[%clk 0:00:23.8]} 60. Kb4
{[%clk 0:01:36.2]} 60... f1=Q {[%clk 0:00:23.7]} 61. Kb3 {[%clk 0:01:36]} 61...
Qd1+ {[%clk 0:00:22.7]} 62. Kb2 {[%clk 0:01:34.9]} 62... Qc2+ {[%clk 0:00:22.6]}
63. Ka3 {[%clk 0:01:33.8]} 63... Rb1 {[%clk 0:00:22.5]} 1/2-1/2

[Event "Live Chess"]
[Site "Chess.com"]
[Date "2023.05.20"]
[Round "-"]
[White "Richardallis"]
[Black "wot-not"]
[Result "1-0"]
[WhiteElo "1888"]
[BlackElo "1526"]
[TimeControl "300"]
[EndTime "14:19:16 PDT"]
[Termination "Richardallis won by resignation"]

1. d4 {[%clk 0:04:56.5]} 1... Nf6 {[%clk 0:04:58.8]} 2. Nf3 {[%clk 0:04:55.9]}
2... d6 {[%clk 0:04:58]} 3. Bg5 {[%clk 0:04:55.2]} 3... Bg4 {[%clk 0:04:57.2]}
4. Nbd2 {[%clk 0:04:53.9]} 4... Nbd7 {[%clk 0:04:56.5]} 5. e4 {[%clk 0:04:52.2]}
5... e5 {[%clk 0:04:51.6]} 6. dxe5 {[%clk 0:04:51.2]} 6... Nxe5 {[%clk
0:04:47.3]} 7. h3 {[%clk 0:04:50]} 7... Bh5 {[%clk 0:04:43.2]} 8. g4 {[%clk
0:04:47.8]} 8... Bg6 {[%clk 0:04:42.2]} 9. Nxe5 {[%clk 0:04:46.2]} 9... dxe5
{[%clk 0:04:41.1]} 10. Bd3 {[%clk 0:04:44.3]} 10... Be7 {[%clk 0:04:37.3]} 11.
Qf3 {[%clk 0:04:42.3]} 11... O-O {[%clk 0:04:36]} 12. O-O {[%clk 0:04:40.8]}
12... h6 {[%clk 0:04:35.3]} 13. Bxf6 {[%clk 0:04:36.9]} 13... Bxf6 {[%clk
0:04:34]} 14. Rad1 {[%clk 0:04:35.3]} 14... c6 {[%clk 0:04:19.1]} 15. Nc4 {[%clk
0:04:34.2]} 15... Qc7 {[%clk 0:04:14.6]} 16. Ne3 {[%clk 0:04:31.9]} 16... Rad8
{[%clk 0:04:11.8]} 17. Nf5 {[%clk 0:04:30.5]} 17... Bxf5 {[%clk 0:04:11.1]} 18.
Qxf5 {[%clk 0:04:28.5]} 18... Qd7 {[%clk 0:04:03.3]} 19. Qf3 {[%clk 0:04:24]}
19... Qe7 {[%clk 0:03:58.4]} 20. Bc4 {[%clk 0:04:22.5]} 20... Bg5 {[%clk
0:03:55.4]} 21. Qf5 {[%clk 0:04:20.2]} 21... Bf4 {[%clk 0:03:53.6]} 22. Kg2
{[%clk 0:04:19]} 22... Rxd1 {[%clk 0:03:38.4]} 23. Rxd1 {[%clk 0:04:17.4]} 23...
g6 {[%clk 0:03:06.2]} 24. Qxg6+ {[%clk 0:04:15.5]} 24... Kh8 {[%clk 0:02:48.9]}
25. Qf5 {[%clk 0:04:13.8]} 25... Qb4 {[%clk 0:02:31.4]} 26. Bb3 {[%clk
0:04:12.4]} 26... c5 {[%clk 0:02:24.6]} 27. Bxf7 {[%clk 0:04:08.4]} 27... Rxf7
{[%clk 0:02:10.2]} 28. Qxf7 {[%clk 0:04:00.5]} 28... Qxe4+ {[%clk 0:02:09.4]}
29. Kg1 {[%clk 0:03:56.3]} 29... Bd2 {[%clk 0:01:47.4]} 30. Qe8+ {[%clk
0:03:54.7]} 30... Kg7 {[%clk 0:01:27]} 31. Qd7+ {[%clk 0:03:52.2]} 31... Kg6
{[%clk 0:01:25.3]} 32. Qxd2 {[%clk 0:03:50.7]} 1-0

[Event "Live Chess"]
[Site "Chess.com"]
[Date "2023.05.20"]
[Round "-"]
[White "chessfiction"]
[Black "Jeffaroow"]
[Result "1-0"]
[WhiteElo "2362"]
[BlackElo "505"]
[TimeControl "300"]
[EndTime "14:19:18 PDT"]
[Termination "chessfiction won by checkmate"]

1. e4 {[%clk 0:04:59.5]} 1... e5 {[%clk 0:04:57.2]} 2. Bc4 {[%clk 0:04:58.2]}
2... Nf6 {[%clk 0:04:55.8]} 3. Nf3 {[%clk 0:04:56.3]} 3... d5 {[%clk 0:04:52.4]}
4. exd5 {[%clk 0:04:54.8]} 4... Nxd5 {[%clk 0:04:51.2]} 5. Nxe5 {[%clk
0:04:53.6]} 5... Be6 {[%clk 0:04:44.2]} 6. O-O {[%clk 0:04:52.5]} 6... Ne3
{[%clk 0:04:32.8]} 7. fxe3 {[%clk 0:04:50.3]} 7... Bd6 {[%clk 0:04:23.9]} 8.
Nxf7 {[%clk 0:04:48.4]} 8... Bxf7 {[%clk 0:04:19.5]} 9. Rxf7 {[%clk 0:04:45.5]}
9... Rf8 {[%clk 0:04:09.6]} 10. Qh5 {[%clk 0:04:42.9]} 10... Rxf7 {[%clk
0:04:07.6]} 11. Qxf7# {[%clk 0:04:42.8]} 1-0

[Event "Live Chess"]
[Site "Chess.com"]
[Date "2023.05.20"]
[Round "-"]
[White "Ferrarifan27"]
[Black "NatashaRegan"]
[Result "1-0"]
[WhiteElo "2070"]
[BlackElo "1739"]
[TimeControl "300"]
[EndTime "14:19:23 PDT"]
[Termination "Ferrarifan27 won by resignation"]

1. e4 {[%clk 0:04:58.7]} 1... Nf6 {[%clk 0:04:57.9]} 2. e5 {[%clk 0:04:55.7]}
2... Nd5 {[%clk 0:04:57]} 3. d4 {[%clk 0:04:55]} 3... d6 {[%clk 0:04:55.7]} 4.
Nf3 {[%clk 0:04:53.6]} 4... dxe5 {[%clk 0:04:54.2]} 5. Nxe5 {[%clk 0:04:52.4]}
5... c6 {[%clk 0:04:53.5]} 6. Bc4 {[%clk 0:04:50.4]} 6... g6 {[%clk 0:04:52.1]}
7. O-O {[%clk 0:04:48.6]} 7... Bg7 {[%clk 0:04:51]} 8. Re1 {[%clk 0:04:47.2]}
8... Be6 {[%clk 0:04:49.5]} 9. c3 {[%clk 0:04:33]} 9... O-O {[%clk 0:04:47.2]}
10. Qe2 {[%clk 0:04:30.9]} 10... Nd7 {[%clk 0:04:45.6]} 11. Nxd7 {[%clk
0:04:29.4]} 11... Qxd7 {[%clk 0:04:43.8]} 12. Bg5 {[%clk 0:04:28.2]} 12... Rfe8
{[%clk 0:04:40.7]} 13. Nd2 {[%clk 0:04:27]} 13... Bg4 {[%clk 0:04:38.8]} 14. f3
{[%clk 0:04:24.9]} 14... Be6 {[%clk 0:04:36]} 15. Ne4 {[%clk 0:04:22.9]} 15...
a6 {[%clk 0:04:33.4]} 16. Nc5 {[%clk 0:04:21.3]} 16... Qc8 {[%clk 0:04:31]} 17.
Nxe6 {[%clk 0:04:20.3]} 17... fxe6 {[%clk 0:04:29.3]} 18. Qxe6+ {[%clk
0:04:19.4]} 18... Qxe6 {[%clk 0:04:27.3]} 19. Rxe6 {[%clk 0:04:19.3]} 19... Kf7
{[%clk 0:04:25.8]} 20. Rae1 {[%clk 0:04:17.1]} 20... b5 {[%clk 0:04:22.6]} 21.
Bxd5 {[%clk 0:04:16]} 21... cxd5 {[%clk 0:04:21.1]} 22. Rxe7+ {[%clk 0:04:15.4]}
22... Rxe7 {[%clk 0:04:17.8]} 23. Rxe7+ {[%clk 0:04:15.3]} 23... Kf8 {[%clk
0:04:16.1]} 24. Rd7 {[%clk 0:04:12.4]} 24... a5 {[%clk 0:04:10]} 25. Rxd5 {[%clk
0:04:08.2]} 25... b4 {[%clk 0:04:09]} 26. Rd8+ {[%clk 0:04:02.6]} 26... Rxd8
{[%clk 0:04:05.9]} 27. Bxd8 {[%clk 0:04:02.5]} 27... bxc3 {[%clk 0:04:03.5]} 28.
bxc3 {[%clk 0:04:00.7]} 28... a4 {[%clk 0:04:02.7]} 29. Kf2 {[%clk 0:03:58.2]}
29... Ke8 {[%clk 0:04:01.9]} 30. Ba5 {[%clk 0:03:56.5]} 30... Kd7 {[%clk
0:04:01]} 31. Ke3 {[%clk 0:03:55.9]} 31... Kc6 {[%clk 0:03:59.7]} 32. c4 {[%clk
0:03:55.3]} 32... h5 {[%clk 0:03:55.1]} 33. Ke4 {[%clk 0:03:54.1]} 33... Bh6
{[%clk 0:03:52.8]} 34. Bc3 {[%clk 0:03:51.8]} 34... Bc1 {[%clk 0:03:46.9]} 35.
Ke5 {[%clk 0:03:47.8]} 35... h4 {[%clk 0:03:41.5]} 36. Kf6 {[%clk 0:03:46.4]}
36... g5 {[%clk 0:03:39.8]} 37. Kf5 {[%clk 0:03:41.3]} 37... a3 {[%clk
0:03:37.2]} 38. Bb4 {[%clk 0:03:39.4]} 38... Bb2 {[%clk 0:03:33]} 39. d5+ {[%clk
0:03:38]} 39... Kd7 {[%clk 0:03:31.3]} 40. Kxg5 {[%clk 0:03:37]} 1-0

[Event "Live Chess"]
[Site "Chess.com"]
[Date "2023.05.20"]
[Round "-"]
[White "Stanbad1"]
[Black "luckywookie"]
[Result "1-0"]
[WhiteElo "2393"]
[BlackElo "743"]
[TimeControl "300"]
[EndTime "14:19:31 PDT"]
[Termination "Stanbad1 won by checkmate"]

1. d4 {[%clk 0:04:55.7]} 1... d5 {[%clk 0:04:58.9]} 2. Nc3 {[%clk 0:04:52.9]}
2... Nf6 {[%clk 0:04:56.5]} 3. Bf4 {[%clk 0:04:49.4]} 3... c5 {[%clk 0:04:50]}
4. e4 {[%clk 0:04:47.7]} 4... cxd4 {[%clk 0:04:46.7]} 5. Qxd4 {[%clk 0:04:44.8]}
5... Nc6 {[%clk 0:04:42.5]} 6. Bb5 {[%clk 0:04:42.6]} 6... e6 {[%clk 0:04:33.3]}
7. exd5 {[%clk 0:04:39.9]} 7... Nxd5 {[%clk 0:04:21.7]} 8. Nxd5 {[%clk
0:04:34.1]} 8... exd5 {[%clk 0:04:20.1]} 9. O-O-O {[%clk 0:04:31.9]} 9... Be6
{[%clk 0:04:11.6]} 10. Nf3 {[%clk 0:04:28.2]} 10... Bd6 {[%clk 0:04:01.1]} 11.
Bxd6 {[%clk 0:04:25.4]} 11... Qxd6 {[%clk 0:03:59.8]} 12. Qxg7 {[%clk
0:04:24.6]} 12... O-O-O {[%clk 0:03:56.1]} 13. Qf6 {[%clk 0:04:21]} 13... a6
{[%clk 0:03:48.4]} 14. Bxc6 {[%clk 0:04:18.5]} 14... bxc6 {[%clk 0:03:47.5]} 15.
g3 {[%clk 0:04:16.6]} 15... Rhg8 {[%clk 0:03:39.5]} 16. Ne5 {[%clk 0:04:10.5]}
16... Rdf8 {[%clk 0:03:04.8]} 17. Rhe1 {[%clk 0:04:05.7]} 17... h5 {[%clk
0:02:53.4]} 18. h4 {[%clk 0:04:02]} 18... Kc7 {[%clk 0:02:26.5]} 19. Nxf7 {[%clk
0:03:52.8]} 19... Bxf7 {[%clk 0:02:17.1]} 20. Re7+ {[%clk 0:03:50.3]} 20... Qxe7
{[%clk 0:02:10.5]} 21. Qxe7+ {[%clk 0:03:50.2]} 21... Kc8 {[%clk 0:02:08.3]} 22.
Qa7 {[%clk 0:03:47]} 22... Re8 {[%clk 0:01:57.5]} 23. Qxf7 {[%clk 0:03:44.6]}
23... Rgf8 {[%clk 0:01:50.2]} 24. Qxh5 {[%clk 0:03:42]} 24... Re2 {[%clk
0:01:47.9]} 25. Qxe2 {[%clk 0:03:40.1]} 25... Rd8 {[%clk 0:01:45.8]} 26. Qe6+
{[%clk 0:03:35.8]} 26... Kc7 {[%clk 0:01:44.8]} 27. h5 {[%clk 0:03:34.9]} 27...
Rd6 {[%clk 0:01:42.9]} 28. Qe5 {[%clk 0:03:34.1]} 28... Kd7 {[%clk 0:01:41.2]}
29. Qxd6+ {[%clk 0:03:34]} 29... Kxd6 {[%clk 0:01:40.2]} 30. Re1 {[%clk
0:03:33.9]} 30... d4 {[%clk 0:01:38.7]} 31. h6 {[%clk 0:03:33.8]} 31... d3
{[%clk 0:01:37.7]} 32. cxd3 {[%clk 0:03:33.3]} 32... c5 {[%clk 0:01:36.1]} 33.
h7 {[%clk 0:03:33.2]} 33... c4 {[%clk 0:01:35.3]} 34. h8=Q {[%clk 0:03:33.1]}
34... cxd3 {[%clk 0:01:34.6]} 35. Qd4+ {[%clk 0:03:32.8]} 35... Kc6 {[%clk
0:01:32.5]} 36. Re6+ {[%clk 0:03:32.2]} 36... Kc7 {[%clk 0:01:31.6]} 37. Qd6+
{[%clk 0:03:31.2]} 37... Kc8 {[%clk 0:01:29.6]} 38. Re8+ {[%clk 0:03:29.2]}
38... Kb7 {[%clk 0:01:27.4]} 39. Rb8+ {[%clk 0:03:29.1]} 39... Ka7 {[%clk
0:01:23.4]} 40. Qb6# {[%clk 0:03:29]} 1-0

[Event "Live Chess"]
[Site "Chess.com"]
[Date "2023.05.20"]
[Round "-"]
[White "KeithArkell"]
[Black "Supertromp"]
[Result "1-0"]
[WhiteElo "2618"]
[BlackElo "2179"]
[TimeControl "300"]
[EndTime "14:19:59 PDT"]
[Termination "KeithArkell won by checkmate"]

1. d4 {[%clk 0:04:59]} 1... Nf6 {[%clk 0:04:58.1]} 2. Nf3 {[%clk 0:04:58.1]}
2... g6 {[%clk 0:04:56.9]} 3. c4 {[%clk 0:04:57.3]} 3... Bg7 {[%clk 0:04:56]} 4.
Nc3 {[%clk 0:04:56.7]} 4... O-O {[%clk 0:04:54.9]} 5. g3 {[%clk 0:04:56.1]} 5...
d6 {[%clk 0:04:53.3]} 6. Bg2 {[%clk 0:04:55.5]} 6... Nbd7 {[%clk 0:04:52.7]} 7.
d5 {[%clk 0:04:54.7]} 7... a5 {[%clk 0:04:20.2]} 8. O-O {[%clk 0:04:53.2]} 8...
Nb6 {[%clk 0:04:17.4]} 9. Qd3 {[%clk 0:04:48.9]} 9... Nfd7 {[%clk 0:04:15.9]}
10. Be3 {[%clk 0:04:46.1]} 10... e5 {[%clk 0:03:53]} 11. dxe6 {[%clk 0:04:44.1]}
11... fxe6 {[%clk 0:03:51.7]} 12. Bd4 {[%clk 0:04:37]} 12... e5 {[%clk
0:03:45.1]} 13. Be3 {[%clk 0:04:24.3]} 13... Qf6 {[%clk 0:03:37.9]} 14. Bg5
{[%clk 0:04:18.3]} 14... Qf7 {[%clk 0:03:36.1]} 15. Nd5 {[%clk 0:04:14.8]} 15...
Nxd5 {[%clk 0:03:31.5]} 16. cxd5 {[%clk 0:04:13.7]} 16... Nc5 {[%clk 0:03:30.8]}
17. Qd1 {[%clk 0:04:07.9]} 17... Bf5 {[%clk 0:03:24.6]} 18. Rc1 {[%clk
0:04:03.5]} 18... Be4 {[%clk 0:03:17.8]} 19. Ne1 {[%clk 0:03:55]} 19... Bxg2
{[%clk 0:03:17]} 20. Nxg2 {[%clk 0:03:54.1]} 20... a4 {[%clk 0:03:09.2]} 21. Be3
{[%clk 0:03:52.8]} 21... b6 {[%clk 0:03:07.5]} 22. b4 {[%clk 0:03:48.8]} 22...
axb3 {[%clk 0:03:05.5]} 23. axb3 {[%clk 0:03:48.1]} 23... Ne4 {[%clk 0:02:42.7]}
24. Qd3 {[%clk 0:03:40.7]} 24... Nf6 {[%clk 0:02:40]} 25. Rfd1 {[%clk
0:03:38.6]} 25... Ra5 {[%clk 0:02:39]} 26. Qc2 {[%clk 0:03:21.8]} 26... Rxd5
{[%clk 0:02:37.9]} 27. Rxd5 {[%clk 0:03:15.7]} 27... Nxd5 {[%clk 0:02:37.8]} 28.
f3 {[%clk 0:03:11.3]} 28... c5 {[%clk 0:02:21.2]} 29. Bd2 {[%clk 0:03:03.8]}
29... Nc7 {[%clk 0:02:12.2]} 30. b4 {[%clk 0:02:53.2]} 30... Ne6 {[%clk
0:02:10.9]} 31. bxc5 {[%clk 0:02:39.9]} 31... bxc5 {[%clk 0:02:09.7]} 32. Ne3
{[%clk 0:02:29.7]} 32... Nd4 {[%clk 0:02:05.9]} 33. Qd1 {[%clk 0:02:27.3]} 33...
e4 {[%clk 0:01:57.5]} 34. f4 {[%clk 0:02:25.7]} 34... Nf5 {[%clk 0:01:50.4]} 35.
Kg2 {[%clk 0:02:13.8]} 35... Bd4 {[%clk 0:01:38.7]} 36. Nf1 {[%clk 0:02:02.8]}
36... e3 {[%clk 0:01:34.4]} 37. Bc3 {[%clk 0:02:00.4]} 37... Qd5+ {[%clk
0:01:32.6]} 38. Kg1 {[%clk 0:01:59.3]} 38... Qe4 {[%clk 0:01:22.8]} 39. Qc2
{[%clk 0:01:49.6]} 39... Qxc2 {[%clk 0:01:18.8]} 40. Rxc2 {[%clk 0:01:49.5]}
40... Bxc3 {[%clk 0:01:17.2]} 41. Rxc3 {[%clk 0:01:48.7]} 41... Re8 {[%clk
0:01:16.5]} 42. Kg2 {[%clk 0:01:46.5]} 42... Kf7 {[%clk 0:01:15]} 43. Ra3 {[%clk
0:01:29.8]} 43... d5 {[%clk 0:01:12.6]} 44. g4 {[%clk 0:01:28.2]} 44... Nd4
{[%clk 0:01:10.3]} 45. Nxe3 {[%clk 0:01:27.3]} 45... Nxe2 {[%clk 0:01:03.6]} 46.
Nxd5 {[%clk 0:01:25.3]} 46... Rd8 {[%clk 0:01:01.8]} 47. Ra7+ {[%clk 0:01:09]}
47... Ke6 {[%clk 0:00:51.3]} 48. Nc7+ {[%clk 0:01:08.1]} 48... Kd6 {[%clk
0:00:47.9]} 49. Kf3 {[%clk 0:01:06.9]} 49... Nd4+ {[%clk 0:00:46.8]} 50. Ke4
{[%clk 0:01:05.8]} 50... Rd7 {[%clk 0:00:45.6]} 51. Ne8+ {[%clk 0:00:59.3]}
51... Ke7 {[%clk 0:00:41.5]} 52. Rxd7+ {[%clk 0:00:58.5]} 52... Kxd7 {[%clk
0:00:40.4]} 53. Nf6+ {[%clk 0:00:57.9]} 53... Ke6 {[%clk 0:00:38.9]} 54. Nxh7
{[%clk 0:00:57.2]} 54... Kf7 {[%clk 0:00:35.6]} 55. Ng5+ {[%clk 0:00:56.1]}
55... Kf6 {[%clk 0:00:34.4]} 56. Nf3 {[%clk 0:00:55.5]} 56... Ne2 {[%clk
0:00:28]} 57. Ke3 {[%clk 0:00:54.5]} 57... Nc3 {[%clk 0:00:25.5]} 58. Ne5 {[%clk
0:00:52.7]} 58... Nd5+ {[%clk 0:00:23.7]} 59. Ke4 {[%clk 0:00:51.4]} 59... Nc3+
{[%clk 0:00:23]} 60. Kd3 {[%clk 0:00:50.2]} 60... Nd5 {[%clk 0:00:22.5]} 61. Ke4
{[%clk 0:00:47]} 61... Nc3+ {[%clk 0:00:21.4]} 62. Kf3 {[%clk 0:00:46.4]} 62...
Nd5 {[%clk 0:00:20.7]} 63. Nd7+ {[%clk 0:00:45.3]} 63... Ke6 {[%clk 0:00:19.3]}
64. Nxc5+ {[%clk 0:00:44.6]} 64... Kf6 {[%clk 0:00:18.8]} 65. Ne4+ {[%clk
0:00:43.8]} 65... Kg7 {[%clk 0:00:17.9]} 66. h4 {[%clk 0:00:43.2]} 66... Ne7
{[%clk 0:00:17.1]} 67. Ng3 {[%clk 0:00:40.9]} 67... Nd5 {[%clk 0:00:15.9]} 68.
Ke4 {[%clk 0:00:40.3]} 68... Nf6+ {[%clk 0:00:15.2]} 69. Kf3 {[%clk 0:00:39.9]}
69... Nd5 {[%clk 0:00:14.6]} 70. Ne2 {[%clk 0:00:39.2]} 70... Nf6 {[%clk
0:00:13.5]} 71. Nc3 {[%clk 0:00:38.4]} 71... Nd7 {[%clk 0:00:12.6]} 72. g5
{[%clk 0:00:35.4]} 72... Nf8 {[%clk 0:00:11.2]} 73. Ke4 {[%clk 0:00:33.4]} 73...
Nd7 {[%clk 0:00:10.5]} 74. f5 {[%clk 0:00:31.7]} 74... Nc5+ {[%clk 0:00:09.9]}
75. Kd5 {[%clk 0:00:31.2]} 75... Nd7 {[%clk 0:00:07.3]} 76. Ke6 {[%clk
0:00:28.6]} 76... Nf8+ {[%clk 0:00:05.2]} 77. Ke5 {[%clk 0:00:28]} 77... gxf5
{[%clk 0:00:04.8]} 78. Kxf5 {[%clk 0:00:27.1]} 78... Ng6 {[%clk 0:00:04.7]} 79.
h5 {[%clk 0:00:26.5]} 79... Nf8 {[%clk 0:00:04.3]} 80. Ne4 {[%clk 0:00:24.5]}
80... Kh7 {[%clk 0:00:03.8]} 81. Nf6+ {[%clk 0:00:22.2]} 81... Kg7 {[%clk
0:00:02.6]} 82. Ng4 {[%clk 0:00:19.5]} 82... Kh8 {[%clk 0:00:02.5]} 83. Ne5
{[%clk 0:00:18.2]} 83... Nd7 {[%clk 0:00:02.4]} 84. Nxd7 {[%clk 0:00:16.7]}
84... Kg7 {[%clk 0:00:02.3]} 85. Nf6 {[%clk 0:00:16]} 85... Kh8 {[%clk
0:00:01.5]} 86. Ng4 {[%clk 0:00:14.7]} 86... Kg7 {[%clk 0:00:01.4]} 87. g6
{[%clk 0:00:13.5]} 87... Kf8 {[%clk 0:00:01.3]} 88. Kf6 {[%clk 0:00:12.9]} 88...
Kg8 {[%clk 0:00:01.2]} 89. Nh6+ {[%clk 0:00:11.2]} 89... Kh8 {[%clk 0:00:01.1]}
90. g7+ {[%clk 0:00:10.6]} 90... Kh7 {[%clk 0:00:00.9]} 91. g8=Q+ {[%clk
0:00:10.1]} 91... Kxh6 {[%clk 0:00:00.8]} 92. Qg6# {[%clk 0:00:09.5]} 1-0

[Event "Live Chess"]
[Site "Chess.com"]
[Date "2023.05.20"]
[Round "-"]
[White "gmnorfolk"]
[Black "KGreenGator"]
[Result "1-0"]
[WhiteElo "2103"]
[BlackElo "1789"]
[TimeControl "300"]
[EndTime "14:20:01 PDT"]
[Termination "gmnorfolk won by resignation"]

1. d4 {[%clk 0:04:58.5]} 1... Nf6 {[%clk 0:04:58.4]} 2. c4 {[%clk 0:04:53.6]}
2... d5 {[%clk 0:04:55.7]} 3. cxd5 {[%clk 0:04:52.3]} 3... Qxd5 {[%clk
0:04:54.1]} 4. Nf3 {[%clk 0:04:50.2]} 4... Nc6 {[%clk 0:04:52.4]} 5. Nc3 {[%clk
0:04:49.5]} 5... Qd8 {[%clk 0:04:50.8]} 6. d5 {[%clk 0:04:47]} 6... Nb8 {[%clk
0:04:49.3]} 7. e4 {[%clk 0:04:45.8]} 7... e6 {[%clk 0:04:43.3]} 8. Bc4 {[%clk
0:04:43.1]} 8... exd5 {[%clk 0:04:38.3]} 9. Nxd5 {[%clk 0:04:41.8]} 9... Be7
{[%clk 0:04:26.7]} 10. O-O {[%clk 0:04:22.4]} 10... O-O {[%clk 0:04:21.6]} 11.
Nxe7+ {[%clk 0:04:13.1]} 11... Qxe7 {[%clk 0:04:19.9]} 12. e5 {[%clk 0:04:12.6]}
12... Nfd7 {[%clk 0:04:13.3]} 13. Bg5 {[%clk 0:04:03.1]} 13... Qe8 {[%clk
0:04:09.8]} 14. Re1 {[%clk 0:03:58]} 14... Nc6 {[%clk 0:04:02.1]} 15. e6 {[%clk
0:03:55]} 15... fxe6 {[%clk 0:03:58.7]} 16. Rxe6 {[%clk 0:03:53.6]} 16... Qf7
{[%clk 0:03:47.5]} 17. Rxc6 {[%clk 0:03:50.6]} 17... bxc6 {[%clk 0:03:43.3]} 18.
Bxf7+ {[%clk 0:03:49]} 18... Rxf7 {[%clk 0:03:43]} 19. Qe2 {[%clk 0:03:44.2]}
19... Bb7 {[%clk 0:03:40.6]} 20. Re1 {[%clk 0:03:36.3]} 20... Kf8 {[%clk
0:03:37.6]} 21. Ne5 {[%clk 0:03:29.9]} 21... Nxe5 {[%clk 0:03:35.5]} 22. Qxe5
{[%clk 0:03:29.4]} 22... c5 {[%clk 0:03:33.2]} 23. Qxc5+ {[%clk 0:03:25.1]}
23... Kg8 {[%clk 0:03:30.6]} 24. f3 {[%clk 0:03:22.5]} 24... h6 {[%clk
0:03:27.5]} 25. Re7 {[%clk 0:03:15.2]} 25... hxg5 {[%clk 0:03:10.8]} 26. Rxf7
{[%clk 0:03:13.7]} 26... Kxf7 {[%clk 0:03:09.5]} 27. Qxc7+ {[%clk 0:03:13.2]}
27... Kg6 {[%clk 0:03:08.9]} 28. Qxb7 {[%clk 0:03:12.7]} 28... Rf8 {[%clk
0:03:07.4]} 29. Qxa7 {[%clk 0:03:10.1]} 1-0